[Event "EYCC Open-U14 2019"]
[Site "Bratislava"]
[Date "2019.08.02"]
[Round "1.9"]
[White "Musyuk, Lior"]
[Black "Farkas, Otto Jr."]
[Result "1-0"]
[ECO "B40"]
[WhiteElo "2236"]
[BlackElo "1913"]
[Annotator "NA"]
[PlyCount "80"]
[EventDate "2019.08.02"]
[EventType "swiss"]
[EventCountry "SVK"]
[SourceTitle "playchess.com"]
[Source "ChessBase"]
[SourceQuality "1"]
[TimeControl "40/5400+30:1800+30"]

1. e4 {[%emt 0:00:00]} c5 {[%emt 0:00:00]} 2. Nf3 {[%emt 0:00:00]} e6 {[%emt 0:00:00]} 3. d4 {[%emt 0:00:13]} cxd4 {[%emt 0:00:12]} 4. Nxd4 {[%emt 0:00:21]} Nf6 {[%emt 0:00:09]} 5. Nc3 {[%emt 0:01:32]} Nc6 {[%emt 0:00:21]} 6. g3 {[%emt 0:01:08]} Bb4 {[%emt 0:05:39]} 7. Bg2 {[%emt 0:01:05]} d5 {[%emt 0:04:48]} 8. exd5 {[%emt 0:02:05]} Nxd5 {[%emt 0:12:46]} 9. O-O {[%emt 0:03:28]} Nxc3 {[%emt 0:24:19]} 10. bxc3 {[%emt 0:02:04]} Bxc3 {[%emt 0:03:58]} 11. Nxc6 {[%emt 0:01:35]} Qxd1 {[%emt 0:04:50]} 12. Rxd1 {[%emt 0:00:16]} Bd7 {[%emt 0:02:18]} 13. Rb1 {[%emt 0:00:46]} Bxc6 {[%emt 0:01:55]} 14. Bxc6+ {[%emt 0:00:43]} bxc6 {[%emt 0:00:30]} 15. Ba3 {[%emt 0:00:14]} a5 {[%emt 0:10:39]} 16. Rd3 {[%emt 0:05:43]} Bb4 {[%emt 0:01:53]} 17. Bxb4 {[%emt 0:01:15]} axb4 {[%emt 0:00:16]} 18. Rxb4 {[%emt 0:00:13]} O-O {[%emt 0:00:33]} 19. a4 {[%emt 0:01:58]} g6 {[%emt 0:01:17]} 20. Rd7 {[%emt 0:10:05]} Rfd8 {[%emt 0:06:16]} 21. Rc7 {[%emt 0:08:48]} Rdc8 {[%emt 0:02:44]} 22. Re7 {[%emt 0:03:25]} Rab8 {[%emt 0:04:02]} 23. Rf4 {[%emt 0:01:05]} Rf8 {[%emt 0:02:42]} 24. Rc7 {[%emt 0:01:41]} Rb6 {[%emt 0:01:04]} 25. Ra7 {[%emt 0:03:27]} e5 {[%emt 0:04:07]} 26. Rf6 {[%emt 0:01:33]} Kg7 {[%emt 0:01:09]} 27. Re6 {[%emt 0:06:19]} Ra8 {[%emt 0:02:19]} 28. Rc7 {[%emt 0:03:00]} Rc8 {[%emt 0:00:28]} 29. Rxg6+ {[%emt 0:01:34]} hxg6 {[%emt 0:00:06]} 30. Rxc8 {[%emt 0:00:05]} Ra6 {[%emt 0:00:18]} 31. Kf1 {[%emt 0:02:17]} Kf6 {[%emt 0:00:24]} 32. Rc7 {[%emt 0:01:20]} Ke6 {[%emt 0:00:10]} 33. Ke2 {[%emt 0:00:41]} f6 {[%emt 0:00:19]} 34. h4 {[%emt 0:00:42]} g5 {[%emt 0:02:19]} 35. h5 {[%emt 0:03:11]} Kd6 {[%emt 0:00:48]} 36. Rc8 {[%emt 0:01:38]} Rxa4 {[%emt 0:00:34]} 37. h6 {[%emt 0:00:32]} Ra7 {[%emt 0:00:22]} 38. Rh8 {[%emt 0:00:13]} Ke6 {[%emt 0:00:15]} 39. g4 {[%emt 0:00:22]} f5 {[%emt 0:01:43]} 40. h7 {[%emt 0:00:00]} Kd5 1-0

[Event "EYCC Open-U14 2019"]
[Site "Bratislava"]
[Date "2019.08.02"]
[Round "1.10"]
[White "Cuttoli, Alexandre"]
[Black "Stukan, Martin"]
[Result "0-1"]
[ECO "E09"]
[WhiteElo "1848"]
[BlackElo "2303"]
[Annotator "NA"]
[PlyCount "58"]
[EventDate "2019.08.02"]
[EventType "swiss"]
[EventCountry "SVK"]
[SourceTitle "playchess.com"]
[Source "ChessBase"]
[SourceQuality "1"]
[TimeControl "40/5400+30:1800+30"]

1. d4 {[%emt 0:00:00]} Nf6 {[%emt 0:00:00]} 2. Nf3 {[%emt 0:00:00]} d5 {[%emt 0:00:00]} 3. c4 {[%emt 0:00:00]} e6 {[%emt 0:00:00]} 4. g3 {[%emt 0:00:00]} Be7 {[%emt 0:00:00]} 5. Bg2 {[%emt 0:00:04]} O-O {[%emt 0:00:00]} 6. O-O {[%emt 0:00:05]} Nbd7 {[%emt 0:00:00]} 7. Nbd2 {[%emt 0:00:45]} c6 {[%emt 0:00:11]} 8. Qc2 {[%emt 0:00:18]} b6 {[%emt 0:00:12]} 9. Rd1 {[%emt 0:00:25]} Bb7 {[%emt 0:00:38]} 10. e4 {[%emt 0:05:17]} dxc4 {[%emt 0:02:23]} 11. Nxc4 {[%emt 0:01:29]} c5 {[%emt 0:00:26]} 12. e5 {[%emt 0:07:41]} Nd5 {[%emt 0:02:03]} 13. Nd6 {[%emt 0:12:11]} Bxd6 {[%emt 0:05:50]} 14. Ng5 {[%emt 0:06:31]} g6 {[%emt 0:05:40]} 15. exd6 {[%emt 0:01:36]} Rc8 {[%emt 0:07:44]} 16. Qe2 {[%emt 0:17:26]} N7f6 {[%emt 0:11:40]} 17. dxc5 {[%emt 0:11:39]} Rxc5 {[%emt 0:05:04]} 18. Be3 {[%emt 0:18:14]} Nxe3 {[%emt 0:03:07]} 19. Qxe3 {[%emt 0:02:31]} Bxg2 {[%emt 0:00:53]} 20. Nxe6 {[%emt 0:01:46]} fxe6 {[%emt 0:01:49]} 21. Qxe6+ {[%emt 0:00:09]} Kg7 {[%emt 0:01:47]} 22. Kxg2 {[%emt 0:00:55]} Rf7 {[%emt 0:02:48]} 23. b4 {[%emt 0:03:06]} Rc2 {[%emt 0:06:09]} 24. Qe5 {[%emt 0:02:30]} Qa8+ {[%emt 0:04:40]} 25. Kg1 {[%emt 0:00:12]} Qf3 {[%emt 0:02:21]} 26. Qd4 {[%emt 0:00:59]} Rd7 {[%emt 0:01:38]} 27. Rf1 {[%emt 0:01:26]} Rc6 {[%emt 0:01:40]} 28. Rae1 {[%emt 0:01:22]} Rcxd6 {[%emt 0:00:44]} 29. Re7+ {[%emt 0:00:31]} Rxe7 {[%emt 0:00:05]} 0-1

[Event "EYCC Open-U14 2019"]
[Site "Bratislava"]
[Date "2019.08.02"]
[Round "1.11"]
[White "Makoveev, Ilya"]
[Black "Nareks, Matic"]
[Result "1/2-1/2"]
[ECO "A41"]
[WhiteElo "2288"]
[BlackElo "1937"]
[Annotator "NA"]
[PlyCount "46"]
[EventDate "2019.08.02"]
[EventType "swiss"]
[EventCountry "SVK"]
[SourceTitle "playchess.com"]
[Source "ChessBase"]
[SourceQuality "1"]
[TimeControl "40/5400+30:1800+30"]

1. d4 {[%emt 0:00:00]} d6 {[%emt 0:00:29]} 2. e4 {[%emt 0:01:07]} g6 {[%emt 0:00:24]} 3. c4 {[%emt 0:04:44]} e5 {[%emt 0:02:30]} 4. d5 {[%emt 0:03:53]} Nh6 {[%emt 0:08:05]} 5. Bd3 {[%emt 0:15:21]} Bg7 {[%emt 0:05:22]} 6. h4 {[%emt 0:03:25]} Qe7 {[%emt 0:11:38]} 7. Nc3 {[%emt 0:10:22]} Na6 {[%emt 0:08:14]} 8. Bc2 {[%emt 0:12:35]} Bd7 {[%emt 0:06:28]} 9. Qe2 {[%emt 0:14:11]} Qf8 {[%emt 0:06:37]} 10. Bd2 {[%emt 0:05:20]} f5 {[%emt 0:08:05]} 11. O-O-O {[%emt 0:00:23]} f4 {[%emt 0:01:59]} 12. a3 {[%emt 0:01:12]} c5 {[%emt 0:04:13]} 13. dxc6 {[%emt 0:04:56]} bxc6 {[%emt 0:00:41]} 14. Nf3 {[%emt 0:01:37]} Qe7 {[%emt 0:05:10]} 15. b4 {[%emt 0:08:37]} Nc7 {[%emt 0:01:28]} 16. Qd3 {[%emt 0:00:35]} Rb8 {[%emt 0:01:22]} 17. Be1 {[%emt 0:01:24]} Nf7 {[%emt 0:00:59]} 18. Ng5 {[%emt 0:03:17]} Nxg5 {[%emt 0:00:15]} 19. hxg5 {[%emt 0:00:05]} Bf8 {[%emt 0:00:20]} 20. f3 {[%emt 0:01:48]} a5 {[%emt 0:02:16]} 21. Na4 {[%emt 0:03:31]} axb4 {[%emt 0:02:08]} 22. axb4 {[%emt 0:00:08]} Ne6 {[%emt 0:02:20]} 23. Bf2 {[%emt 0:00:41]} Qd8 1/2-1/2

[Event "EYCC Open-U14 2019"]
[Site "Bratislava"]
[Date "2019.08.02"]
[Round "1.12"]
[White "Chlpek, Daniel"]
[Black "Stalmach, Richard"]
[Result "0-1"]
[ECO "B40"]
[WhiteElo "1912"]
[BlackElo "2381"]
[Annotator "NA"]
[PlyCount "116"]
[EventDate "2019.08.02"]
[EventType "swiss"]
[EventCountry "SVK"]
[SourceTitle "playchess.com"]
[Source "ChessBase"]
[SourceQuality "1"]
[TimeControl "40/5400+30:1800+30"]

1. e4 {[%emt 0:00:00]} c5 {[%emt 0:00:00]} 2. Nf3 {[%emt 0:00:00]} e6 {[%emt 0:00:00]} 3. d4 {[%emt 0:00:31]} cxd4 {[%emt 0:00:13]} 4. Nxd4 {[%emt 0:00:15]} Nf6 {[%emt 0:00:17]} 5. Nc3 {[%emt 0:01:04]} Nc6 {[%emt 0:00:19]} 6. Nxc6 {[%emt 0:01:31]} bxc6 {[%emt 0:00:16]} 7. Bd3 {[%emt 0:02:52]} d5 {[%emt 0:01:30]} 8. O-O {[%emt 0:03:23]} Be7 {[%emt 0:02:49]} 9. exd5 {[%emt 0:10:34]} cxd5 {[%emt 0:01:57]} 10. Bf4 {[%emt 0:02:39]} O-O {[%emt 0:01:10]} 11. Qe2 {[%emt 0:04:02]} Qb6 {[%emt 0:03:02]} 12. Rab1 {[%emt 0:04:03]} Bb7 {[%emt 0:01:22]} 13. Rfd1 {[%emt 0:05:44]} Rac8 {[%emt 0:30:54]} 14. Be3 {[%emt 0:05:28]} Qa5 {[%emt 0:14:20]} 15. Bd2 {[%emt 0:11:32]} Qd8 {[%emt 0:06:14]} 16. Nb5 {[%emt 0:11:52]} Nd7 {[%emt 0:03:01]} 17. c3 {[%emt 0:07:33]} e5 {[%emt 0:04:03]} 18. Re1 {[%emt 0:09:00]} a6 {[%emt 0:08:58]} 19. Na3 {[%emt 0:00:20]} Rc6 {[%emt 0:04:22]} 20. Bf5 {[%emt 0:01:14]} Rf6 {[%emt 0:02:32]} 21. Bxd7 {[%emt 0:01:39]} Qxd7 {[%emt 0:00:03]} 22. Bg5 {[%emt 0:00:40]} Re6 {[%emt 0:02:19]} 23. Bxe7 {[%emt 0:00:08]} Qxe7 {[%emt 0:00:08]} 24. Nc2 {[%emt 0:00:16]} Qg5 {[%emt 0:04:29]} 25. f3 {[%emt 0:02:33]} d4 {[%emt 0:01:21]} 26. cxd4 {[%emt 0:01:18]} exd4 {[%emt 0:01:09]} 27. Qf2 {[%emt 0:01:14]} d3 {[%emt 0:00:57]} 28. Nd4 {[%emt 0:00:52]} Rxe1+ {[%emt 0:01:19]} 29. Rxe1 {[%emt 0:00:10]} Rc8 {[%emt 0:00:36]} 30. Nb3 {[%emt 0:03:11]} h6 {[%emt 0:00:14]} 31. Qe3 {[%emt 0:01:07]} Qxe3+ {[%emt 0:00:53]} 32. Rxe3 {[%emt 0:00:07]} Rc1+ {[%emt 0:00:02]} 33. Kf2 {[%emt 0:00:56]} Rc2+ {[%emt 0:00:03]} 34. Kg3 {[%emt 0:00:13]} Rxb2 {[%emt 0:01:18]} 35. Rxd3 {[%emt 0:00:05]} Rxa2 {[%emt 0:00:36]} 36. Nc5 {[%emt 0:00:12]} Bc6 {[%emt 0:00:34]} 37. Rd8+ {[%emt 0:01:18]} Kh7 {[%emt 0:00:03]} 38. Nd7 {[%emt 0:00:47]} Bxd7 {[%emt 0:04:43]} 39. Rxd7 {[%emt 0:00:05]} Kg6 {[%emt 0:00:07]} 40. Ra7 {[%emt 0:00:00]} h5 {[%emt 0:00:00]} 41. Kh3 {[%emt 0:03:44]} Kf6 {[%emt 0:04:41]} 42. Ra8 {[%emt 0:00:51]} g6 {[%emt 0:02:59]} 43. Ra7 {[%emt 0:00:44]} Ke6 {[%emt 0:02:26]} 44. Kg3 {[%emt 0:01:36]} a5 {[%emt 0:01:24]} 45. Ra6+ {[%emt 0:00:13]} Ke5 {[%emt 0:01:47]} 46. Ra7 {[%emt 0:00:13]} f5 {[%emt 0:01:51]} 47. Re7+ {[%emt 0:01:02]} Kd4 {[%emt 0:05:49]} 48. Rg7 {[%emt 0:00:58]} f4+ {[%emt 0:04:06]} 49. Kh3 {[%emt 0:02:49]} a4 {[%emt 0:04:28]} 50. Rxg6 {[%emt 0:00:25]} a3 51. Ra6 {[%emt 0:00:30]} Kc4 {[%emt 0:03:40]} 52. Ra8 {[%emt 0:02:38]} Kb3 {[%emt 0:00:13]} 53. Rb8+ {[%emt 0:00:09]} Kc3 {[%emt 0:00:51]} 54. Ra8 {[%emt 0:00:19]} Kb3 {[%emt 0:00:01]} 55. Rb8+ {[%emt 0:00:23]} Kc2 {[%emt 0:00:03]} 56. Kh4 {[%emt 0:00:19]} Rb2 {[%emt 0:00:14]} 57. Ra8 {[%emt 0:00:16]} a2 {[%emt 0:00:02]} 58. Kxh5 {[%emt 0:00:11]} Kb1 {[%emt 0:00:04]} 0-1

[Event "EYCC Open-U14 2019"]
[Site "Bratislava"]
[Date "2019.08.02"]
[Round "1.13"]
[White "Vojta, Jakub"]
[Black "Tabuenca Mendataurigoitia, Pedro"]
[Result "1-0"]
[ECO "C11"]
[WhiteElo "2238"]
[BlackElo "1839"]
[Annotator "NA"]
[PlyCount "115"]
[EventDate "2019.08.02"]
[EventType "swiss"]
[EventCountry "SVK"]
[SourceTitle "playchess.com"]
[Source "ChessBase"]
[SourceQuality "1"]
[TimeControl "40/5400+30:1800+30"]

1. e4 {[%emt 0:00:00]} e6 {[%emt 0:00:00]} 2. d4 {[%emt 0:00:00]} d5 {[%emt 0:00:00]} 3. Nc3 {[%emt 0:00:00]} Nf6 {[%emt 0:00:00]} 4. Bg5 {[%emt 0:00:00]} dxe4 {[%emt 0:00:00]} 5. Nxe4 {[%emt 0:00:00]} Be7 {[%emt 0:00:00]} 6. Bxf6 {[%emt 0:00:00]} gxf6 {[%emt 0:00:09]} 7. Nf3 {[%emt 0:02:22]} f5 {[%emt 0:00:40]} 8. Ng3 {[%emt 0:01:20]} c5 {[%emt 0:09:02]} 9. Bb5+ {[%emt 0:17:47]} Bd7 {[%emt 0:13:37]} 10. Bxd7+ {[%emt 0:01:05]} Qxd7 {[%emt 0:01:34]} 11. O-O {[%emt 0:04:30]} cxd4 {[%emt 0:03:30]} 12. Qxd4 {[%emt 0:10:29]} Qxd4 {[%emt 0:06:08]} 13. Nxd4 {[%emt 0:00:03]} O-O 14. Rad1 {[%emt 0:04:21]} Rd8 {[%emt 0:03:16]} 15. c3 {[%emt 0:08:28]} Nd7 {[%emt 0:07:09]} 16. Rfe1 {[%emt 0:01:52]} Bf6 {[%emt 0:01:53]} 17. Nh5 {[%emt 0:08:18]} Bg7 {[%emt 0:10:07]} 18. Rd3 {[%emt 0:10:10]} Ne5 {[%emt 0:11:26]} 19. Rg3 {[%emt 0:00:26]} Ng6 {[%emt 0:00:01]} 20. Nf3 {[%emt 0:06:27]} Rd6 {[%emt 0:11:42]} 21. h4 {[%emt 0:00:38]} Bh8 {[%emt 0:05:09]} 22. Nf4 {[%emt 0:04:28]} Kf8 {[%emt 0:00:28]} 23. Ne2 {[%emt 0:01:40]} Ra6 {[%emt 0:02:00]} 24. h5 {[%emt 0:06:00]} Ne7 {[%emt 0:03:09]} 25. Ng5 {[%emt 0:01:22]} h6 {[%emt 0:00:15]} 26. Nh7+ {[%emt 0:01:18]} Ke8 {[%emt 0:00:04]} 27. Nd4 {[%emt 0:02:16]} Rd8 {[%emt 0:04:46]} 28. Rge3 {[%emt 0:05:26]} e5 {[%emt 0:06:18]} 29. Nf3 {[%emt 0:01:27]} f6 {[%emt 0:00:25]} 30. Nxf6+ {[%emt 0:01:36]} Bxf6 {[%emt 0:00:01]} 31. Nxe5 {[%emt 0:00:07]} Kf8 {[%emt 0:00:45]} 32. a3 {[%emt 0:00:22]} Bxe5 33. Rxe5 {[%emt 0:00:03]} Rd7 {[%emt 0:01:21]} 34. Kh2 {[%emt 0:00:17]} Kf7 {[%emt 0:00:34]} 35. Kg3 {[%emt 0:00:08]} Rb6 {[%emt 0:00:57]} 36. R1e2 {[%emt 0:00:23]} Rc6 {[%emt 0:00:40]} 37. f3 {[%emt 0:00:39]} Kf6 {[%emt 0:00:20]} 38. c4 {[%emt 0:00:55]} f4+ {[%emt 0:00:55]} 39. Kg4 {[%emt 0:00:15]} Ng8 {[%emt 0:00:34]} 40. b3 {[%emt 0:00:00]} Rg7+ {[%emt 0:00:00]} 41. Kxf4 {[%emt 0:00:56]} Ne7 {[%emt 0:02:52]} 42. g4 {[%emt 0:01:48]} Rf7 {[%emt 0:03:46]} 43. Kg3 {[%emt 0:02:11]} Nc8 {[%emt 0:01:54]} 44. f4 {[%emt 0:00:48]} Re7 {[%emt 0:00:53]} 45. g5+ {[%emt 0:00:22]} hxg5 {[%emt 0:00:01]} 46. fxg5+ {[%emt 0:00:09]} Kf7 {[%emt 0:00:06]} 47. Kf4 {[%emt 0:03:30]} Rxe5 {[%emt 0:07:19]} 48. Rxe5 {[%emt 0:00:27]} Ne7 {[%emt 0:01:09]} 49. Ke4 {[%emt 0:02:40]} Rb6 {[%emt 0:01:09]} 50. b4 {[%emt 0:01:25]} Ra6 {[%emt 0:00:35]} 51. Rb5 {[%emt 0:00:43]} b6 {[%emt 0:03:01]} 52. c5 {[%emt 0:00:50]} Rxa3 {[%emt 0:01:45]} 53. cxb6 {[%emt 0:00:21]} axb6 {[%emt 0:00:07]} 54. Rxb6 {[%emt 0:00:08]} Rh3 {[%emt 0:00:55]} 55. h6 {[%emt 0:04:15]} Rh4+ {[%emt 0:01:01]} 56. Kf3 {[%emt 0:01:46]} Nd5 {[%emt 0:06:32]} 57. g6+ {[%emt 0:00:49]} Ke7 {[%emt 0:01:19]} 58. g7 {[%emt 0:00:36]} 1-0

[Event "EYCC Open-U14 2019"]
[Site "Bratislava"]
[Date "2019.08.02"]
[Round "1.14"]
[White "Vanduyfhuys, Igor"]
[Black "Fernandez Lopez, Ruben"]
[Result "0-1"]
[ECO "B92"]
[WhiteElo "1804"]
[BlackElo "2207"]
[Annotator "NA"]
[PlyCount "90"]
[EventDate "2019.08.02"]
[EventType "swiss"]
[EventCountry "SVK"]
[SourceTitle "playchess.com"]
[Source "ChessBase"]
[SourceQuality "1"]
[TimeControl "40/5400+30:1800+30"]

1. e4 {[%emt 0:00:00]} c5 {[%emt 0:00:00]} 2. Nf3 {[%emt 0:00:00]} d6 {[%emt 0:00:00]} 3. d4 {[%emt 0:00:00]} cxd4 {[%emt 0:00:00]} 4. Nxd4 {[%emt 0:00:05]} Nf6 {[%emt 0:00:00]} 5. Nc3 {[%emt 0:00:29]} a6 {[%emt 0:00:11]} 6. Be2 {[%emt 0:00:43]} e5 {[%emt 0:00:08]} 7. Nb3 {[%emt 0:00:34]} Be6 {[%emt 0:00:23]} 8. O-O {[%emt 0:00:33]} Be7 {[%emt 0:00:21]} 9. f4 {[%emt 0:00:54]} O-O {[%emt 0:03:32]} 10. Kh1 {[%emt 0:01:56]} b5 {[%emt 0:02:02]} 11. Bf3 {[%emt 0:01:55]} b4 {[%emt 0:00:49]} 12. Nd5 {[%emt 0:00:36]} Bxd5 {[%emt 0:05:08]} 13. exd5 {[%emt 0:01:22]} e4 {[%emt 0:00:09]} 14. Be2 {[%emt 0:01:15]} Qc7 {[%emt 0:00:34]} 15. Be3 {[%emt 0:03:36]} Nbd7 {[%emt 0:05:17]} 16. a3 {[%emt 0:04:45]} a5 {[%emt 0:02:43]} 17. axb4 {[%emt 0:07:49]} axb4 {[%emt 0:00:22]} 18. Qd2 {[%emt 0:01:37]} Nc5 {[%emt 0:00:47]} 19. Rfd1 {[%emt 0:08:49]} Nxb3 {[%emt 0:05:31]} 20. cxb3 {[%emt 0:00:07]} Qb7 {[%emt 0:00:09]} 21. Qd4 {[%emt 0:04:05]} Qxd5 {[%emt 0:10:30]} 22. Qxd5 {[%emt 0:06:20]} Nxd5 {[%emt 0:00:01]} 23. Rxa8 {[%emt 0:00:16]} Nxe3 {[%emt 0:00:01]} 24. Rxf8+ {[%emt 0:00:10]} Bxf8 {[%emt 0:00:02]} 25. Re1 {[%emt 0:03:11]} d5 {[%emt 0:00:38]} 26. g4 {[%emt 0:20:09]} d4 {[%emt 0:01:33]} 27. Kg1 {[%emt 0:00:17]} d3 {[%emt 0:00:42]} 28. Kf2 {[%emt 0:02:39]} Bc5 {[%emt 0:01:04]} 29. Rc1 {[%emt 0:01:19]} Nc2+ {[%emt 0:00:29]} 30. Kf1 {[%emt 0:01:38]} dxe2+ {[%emt 0:00:58]} 31. Kxe2 {[%emt 0:00:07]} Nd4+ {[%emt 0:00:02]} 32. Kd1 {[%emt 0:01:13]} Nxb3 {[%emt 0:00:13]} 33. Rc4 {[%emt 0:00:32]} e3 {[%emt 0:00:11]} 34. Re4 {[%emt 0:02:15]} Kf8 {[%emt 0:03:33]} 35. Kc2 {[%emt 0:00:59]} Nd4+ {[%emt 0:00:06]} 36. Kd3 {[%emt 0:00:07]} e2 {[%emt 0:00:02]} 37. Kd2 {[%emt 0:01:23]} b3 {[%emt 0:00:14]} 38. Kc3 {[%emt 0:01:01]} f5 {[%emt 0:00:34]} 39. gxf5 {[%emt 0:00:38]} e1=Q+ 40. Rxe1 {[%emt 0:00:00]} Bb4+ {[%emt 0:00:00]} 41. Kxb4 {[%emt 0:00:27]} Nc2+ {[%emt 0:00:11]} 42. Kxb3 {[%emt 0:00:09]} Nxe1 {[%emt 0:00:02]} 43. Kc4 {[%emt 0:00:06]} Nc2 {[%emt 0:01:07]} 44. Kc5 {[%emt 0:00:13]} Ke7 {[%emt 0:00:10]} 45. Kd5 {[%emt 0:00:11]} Kf6 {[%emt 0:00:04]} 0-1

[Event "EYCC Open-U14 2019"]
[Site "Bratislava"]
[Date "2019.08.02"]
[Round "1.15"]
[White "Antonica, Dragos-Andrei"]
[Black "Protassov, Vlad"]
[Result "1/2-1/2"]
[ECO "D37"]
[WhiteElo "2124"]
[BlackElo "1898"]
[Annotator "NA"]
[PlyCount "66"]
[EventDate "2019.08.02"]
[EventType "swiss"]
[EventCountry "SVK"]
[SourceTitle "playchess.com"]
[Source "ChessBase"]
[SourceQuality "1"]
[TimeControl "40/5400+30:1800+30"]

1. d4 {[%emt 0:00:00]} Nf6 {[%emt 0:00:00]} 2. c4 {[%emt 0:00:00]} e6 {[%emt 0:00:09]} 3. Nf3 {[%emt 0:01:21]} d5 {[%emt 0:00:27]} 4. Nc3 {[%emt 0:01:30]} Be7 {[%emt 0:01:19]} 5. g3 {[%emt 0:00:48]} O-O {[%emt 0:00:43]} 6. Bg2 {[%emt 0:00:07]} c6 {[%emt 0:03:12]} 7. O-O {[%emt 0:00:57]} Nbd7 {[%emt 0:00:46]} 8. Nd2 {[%emt 0:00:45]} b6 {[%emt 0:01:04]} 9. e4 {[%emt 0:07:37]} dxe4 {[%emt 0:01:17]} 10. Ndxe4 {[%emt 0:00:10]} Bb7 {[%emt 0:01:46]} 11. Bf4 {[%emt 0:07:06]} Nxe4 {[%emt 0:01:22]} 12. Nxe4 {[%emt 0:00:07]} Nf6 {[%emt 0:01:46]} 13. Qe2 {[%emt 0:00:41]} Qd7 {[%emt 0:07:54]} 14. Rad1 {[%emt 0:11:47]} Rfd8 {[%emt 0:02:47]} 15. Rfe1 {[%emt 0:01:02]} Nxe4 {[%emt 0:02:09]} 16. Bxe4 {[%emt 0:11:05]} Bf6 {[%emt 0:02:11]} 17. Be5 {[%emt 0:04:03]} Bxe5 {[%emt 0:10:44]} 18. dxe5 {[%emt 0:00:04]} Qe7 {[%emt 0:00:10]} 19. Qc2 {[%emt 0:01:46]} g6 {[%emt 0:09:38]} 20. Qa4 {[%emt 0:14:54]} Qc5 {[%emt 0:16:21]} 21. Rxd8+ {[%emt 0:17:09]} Rxd8 {[%emt 0:00:06]} 22. Qxa7 {[%emt 0:03:10]} Rd2 {[%emt 0:00:07]} 23. Re3 {[%emt 0:06:06]} Qxc4 {[%emt 0:01:55]} 24. Qxb7 {[%emt 0:07:19]} Rd1+ {[%emt 0:00:10]} 25. Kg2 {[%emt 0:00:02]} Qf1+ {[%emt 0:00:10]} 26. Kf3 {[%emt 0:00:02]} Rd2 {[%emt 0:00:38]} 27. Qxb6 {[%emt 0:03:06]} Qxf2+ {[%emt 0:17:39]} 28. Kg4 {[%emt 0:00:00]} Qxh2 {[%emt 0:00:09]} 29. Rf3 {[%emt 0:01:09]} Qh5+ {[%emt 0:04:22]} 30. Kf4 {[%emt 0:00:01]} Qh6+ {[%emt 0:00:26]} 31. Kg4 {[%emt 0:00:01]} Qh5+ {[%emt 0:02:42]} 32. Kf4 {[%emt 0:00:02]} Qh6+ {[%emt 0:00:28]} 33. Kg4 {[%emt 0:00:03]} Qh5+ {[%emt 0:00:08]} 1/2-1/2

[Event "EYCC Open-U14 2019"]
[Site "Bratislava"]
[Date "2019.08.02"]
[Round "1.16"]
[White "Briem, Benedikt"]
[Black "Razafindratsima, Timothe"]
[Result "0-1"]
[ECO "D85"]
[WhiteElo "1901"]
[BlackElo "2178"]
[Annotator "NA"]
[PlyCount "72"]
[EventDate "2019.08.02"]
[EventType "swiss"]
[EventCountry "SVK"]
[SourceTitle "playchess.com"]
[Source "ChessBase"]
[SourceQuality "1"]
[TimeControl "40/5400+30:1800+30"]

1. d4 {[%emt 0:00:00]} Nf6 {[%emt 0:00:00]} 2. c4 {[%emt 0:00:00]} g6 {[%emt 0:00:00]} 3. Nc3 {[%emt 0:00:00]} d5 {[%emt 0:00:00]} 4. cxd5 {[%emt 0:00:35]} Nxd5 {[%emt 0:00:00]} 5. Bd2 {[%emt 0:00:34]} Bg7 {[%emt 0:00:19]} 6. e4 {[%emt 0:00:09]} Nxc3 {[%emt 0:00:05]} 7. Bxc3 {[%emt 0:00:07]} c5 {[%emt 0:00:20]} 8. d5 {[%emt 0:00:28]} O-O {[%emt 0:00:26]} 9. Bxg7 {[%emt 0:01:26]} Kxg7 {[%emt 0:00:07]} 10. Qd2 {[%emt 0:02:41]} Qd6 {[%emt 0:03:37]} 11. Nf3 {[%emt 0:02:08]} e6 {[%emt 0:00:39]} 12. Bc4 {[%emt 0:03:07]} exd5 {[%emt 0:00:13]} 13. Bxd5 {[%emt 0:02:39]} Nc6 {[%emt 0:03:43]} 14. Rc1 {[%emt 0:03:25]} f6 {[%emt 0:01:27]} 15. Qc3 {[%emt 0:01:16]} b6 {[%emt 0:02:57]} 16. O-O {[%emt 0:02:11]} Bg4 {[%emt 0:00:53]} 17. Bxc6 {[%emt 0:07:20]} Qxc6 {[%emt 0:00:07]} 18. Nd2 {[%emt 0:18:44]} Rad8 {[%emt 0:01:30]} 19. f3 {[%emt 0:05:49]} Be6 {[%emt 0:00:43]} 20. b3 {[%emt 0:24:54]} Qd6 {[%emt 0:08:53]} 21. Nc4 {[%emt 0:02:59]} Qd4+ {[%emt 0:03:11]} 22. Qxd4 {[%emt 0:02:22]} Rxd4 {[%emt 0:00:29]} 23. Rfd1 {[%emt 0:01:20]} Rfd8 {[%emt 0:00:19]} 24. Ne3 {[%emt 0:01:16]} f5 {[%emt 0:02:22]} 25. Rxd4 {[%emt 0:02:48]} Rxd4 {[%emt 0:00:33]} 26. exf5 {[%emt 0:03:22]} gxf5 {[%emt 0:00:10]} 27. Rd1 {[%emt 0:01:19]} f4 {[%emt 0:00:36]} 28. Rxd4 {[%emt 0:00:58]} cxd4 {[%emt 0:00:07]} 29. Nf1 {[%emt 0:00:14]} Kf6 {[%emt 0:01:13]} 30. Kf2 {[%emt 0:02:39]} d3 {[%emt 0:00:41]} 31. Ke1 {[%emt 0:01:32]} Ke5 {[%emt 0:00:06]} 32. Kd2 {[%emt 0:00:17]} Kd4 {[%emt 0:00:04]} 33. g3 {[%emt 0:01:19]} Bh3 {[%emt 0:00:06]} 34. Ke1 {[%emt 0:00:31]} Bxf1 {[%emt 0:00:10]} 35. Kxf1 {[%emt 0:00:07]} Kc3 {[%emt 0:00:04]} 36. Ke1 {[%emt 0:00:04]} Kc2 {[%emt 0:00:04]} 0-1

[Event "EYCC Open-U14 2019"]
[Site "Bratislava"]
[Date "2019.08.02"]
[Round "1.17"]
[White "Tsaruk, Maksim"]
[Black "Grahn, Vidar"]
[Result "1-0"]
[ECO "B30"]
[WhiteElo "2230"]
[BlackElo "1980"]
[Annotator "NA"]
[PlyCount "53"]
[EventDate "2019.08.02"]
[EventType "swiss"]
[EventCountry "SVK"]
[SourceTitle "playchess.com"]
[Source "ChessBase"]
[SourceQuality "1"]
[TimeControl "40/5400+30:1800+30"]

1. e4 {[%emt 0:00:00]} c5 {[%emt 0:00:00]} 2. Nf3 {[%emt 0:00:00]} Nc6 {[%emt 0:00:00]} 3. c3 {[%emt 0:02:35]} d5 {[%emt 0:00:14]} 4. exd5 {[%emt 0:00:06]} Qxd5 {[%emt 0:00:07]} 5. d4 {[%emt 0:00:03]} Bg4 {[%emt 0:01:21]} 6. dxc5 {[%emt 0:01:19]} Qxd1+ {[%emt 0:03:16]} 7. Kxd1 {[%emt 0:00:07]} e5 {[%emt 0:04:50]} 8. b4 {[%emt 0:24:42]} e4 {[%emt 0:08:24]} 9. h3 {[%emt 0:00:04]} O-O-O+ {[%emt 0:09:34]} 10. Kc2 {[%emt 0:01:41]} Bxf3 {[%emt 0:04:37]} 11. gxf3 {[%emt 0:00:33]} exf3 {[%emt 0:00:13]} 12. Nd2 {[%emt 0:05:49]} Ne5 {[%emt 0:03:53]} 13. Nc4 {[%emt 0:00:22]} Ng6 {[%emt 0:07:50]} 14. Bd3 {[%emt 0:08:38]} Nf6 {[%emt 0:09:16]} 15. Re1 {[%emt 0:04:48]} Nd5 {[%emt 0:09:38]} 16. Be4 {[%emt 0:03:38]} Ndf4 {[%emt 0:09:17]} 17. Bxf4 {[%emt 0:02:01]} Nxf4 {[%emt 0:00:35]} 18. Ne5 {[%emt 0:00:04]} Ng2 {[%emt 0:13:02]} 19. Nxf7 {[%emt 0:03:31]} Nxe1+ {[%emt 0:01:54]} 20. Rxe1 {[%emt 0:00:06]} Be7 {[%emt 0:02:12]} 21. Bxb7+ {[%emt 0:02:04]} Kxb7 {[%emt 0:01:12]} 22. Rxe7+ {[%emt 0:00:07]} Kc8 {[%emt 0:01:01]} 23. Nxh8 {[%emt 0:00:10]} Rxh8 {[%emt 0:00:20]} 24. Rxa7 {[%emt 0:00:06]} Kb8 {[%emt 0:00:16]} 25. Rf7 {[%emt 0:00:05]} Re8 {[%emt 0:00:15]} 26. Rxf3 {[%emt 0:00:04]} Re2+ {[%emt 0:00:09]} 27. Kb3 {[%emt 0:00:04]} 1-0